lending/lending_fUSD_20240705
["ID","MTS","AMOUNT","RATE_DAILY","PERIOD"]
[331239008,1720150247110,-5800.0,0.0002225,2]
[331239009,1720150247119,-500.0,0.00022259,2]
[331239010,1720150247128,-5800.0,0.00022259,2]
[331239011,1720150247138,-5800.0,0.00022267,2]
[331239012,1720150247147,-500.0,0.00022268,2]
[331239013,1720150247161,-5800.0,0.00022276,2]
[331239014,1720150247170,-500.0,0.00022277,2]
[331239015,1720150247179,-35212.3210176,0.0002228,2]
[331239016,1720150247188,-155.92708621,0.00022281,2]
[331239017,1720150247197,-500.0,0.00022285,2]
[331239018,1720150247209,-793.21748259,0.00022294,2]
[331239019,1720150247218,-1281.71299793,0.00022294,2]
[331239020,1720150247227,-155.30662016,0.00022294,2]
[331239021,1720150247237,-500.0,0.00022294,2]
[331239022,1720150247246,-160.0,0.00022298,2]
[331239023,1720150247255,-1011.0,0.000223,2]
[331239024,1720150247265,-500.0,0.00022303,2]
[331239025,1720150247274,-160.0,0.00022306,2]
[331239026,1720150247283,-29627.64877959,0.0002231,2]
[331239027,1720150247293,-500.0,0.00022312,2]
[331239028,1720150247303,-160.0,0.00022315,2]
[331239029,1720150247312,-155.6976816,0.00022317,3]
[331239030,1720150247322,-171.80883893,0.00022319,2]
[331239031,1720150247332,-500.0,0.00022321,2]
[331239032,1720150247342,-500.0,0.00022329,2]
[331239033,1720150247352,-500.0,0.00022338,2]
[331239034,1720150247361,-403.21141503,0.00022348,2]
[331239035,1720150247371,-159.80473577,0.00022354,2]
[331239036,1720150247381,-992.70844829,0.00022355,2]
[331239037,1720150247390,-678.59777895,0.00022356,2]
[331239038,1720150247400,-166.66666666,0.00022366,2]
[331239039,1720150247413,-320.57559794,0.00022376,2]
[331239040,1720150247423,-150.0,0.00022379,2]
[331239041,1720150247433,-154.36262028,0.00022383,2]
[331239042,1720150247442,-719.0487565,0.00022388,2]
[331239043,1720150247452,-1000.0,0.000224,2]
[331239044,1720150247461,-1000.0,0.000224,2]
[331239045,1720150247473,-1000.0,0.000224,2]
[331239046,1720150247483,-1000.0,0.000224,2]
[331239047,1720150247492,-1000.0,0.000224,2]
[331239048,1720150247502,-1000.0,0.000224,2]
[331239049,1720150247511,-1000.0,0.000224,2]
[331239050,1720150247521,-1000.0,0.000224,2]
[331239051,1720150247530,-162.26611922,0.000224,2]
[331239052,1720150247539,-178.72262205,0.000224,2]
[331239053,1720150247548,-258.47034544,0.000224,2]
[331239054,1720150247557,-2000.0,0.000224,2]
[331239055,1720150247567,-1000.0,0.000224,2]
[331239056,1720150247576,-1391.00417367,0.000224,2]
[331239057,1720150247585,-209.25563204,0.000224,2]
[331239058,1720150247595,-4140.31604689,0.000224,2]
[331239059,1720150247605,-181.4384458,0.00022401,2]
[331239060,1720150247619,-150.20681206,0.00022405,2]
[331239061,1720150247628,-2902.486586,0.0002241,2]
[331239062,1720150247637,-220.33,0.00022411,3]
[331239063,1720150247647,-499.74298107,0.00022419,2]
[331239064,1720150247659,-992.70844829,0.00022424,2]
[331239065,1720150247668,-29627.64877959,0.00022426,2]
[331239066,1720150247677,-3466.12788786,0.00022429,2]
[331239067,1720150247687,-1163.270452,0.00022429,2]
[331239068,1720150247696,-166.66666666,0.00022433,2]
[331239069,1720150247707,-156.52001134,0.00022437,2]
[331239070,1720150247716,-251.17385601,0.0002245,2]
[331239071,1720150247726,-157.92486217,0.00022456,2]
[331239072,1720150247737,-1000.0,0.00022465,6]
[331239073,1720150247746,-3427.47095133,0.00022475,2]
[331239074,1720150247756,-162.26611918,0.00022482,2]
[331239075,1720150247765,-154.36262028,0.00022486,2]
[331239076,1720150247776,-1101.55866263,0.00022489,10]
[331239077,1720150247785,-2212.8145101,0.00022489,2]
[331239078,1720150247795,-764.2626567,0.00022489,2]
[331239079,1720150247805,-10454.803112,0.00022491,2]
[331239080,1720150247815,-1202.0,0.00022493,2]
[331239081,1720150247824,-152.05423812,0.00022493,4]
[331239082,1720150247833,-452.6604495,0.00022494,2]
[331239083,1720150247843,-38348.8572082,0.00022494,2]
[331239084,1720150247853,-150.0,0.00022495,2]
[331239085,1720150247862,-150.01,0.00022498,2]
[331239086,1720150247872,-1093.90891389,0.00022498,2]
[331239087,1720150247881,-150.0,0.00022499,10]
[331239088,1720150247890,-150.0,0.00022499,10]
[331239089,1720150247899,-150.0,0.00022499,10]
[331239090,1720150247910,-150.0,0.00022499,10]
[331239091,1720150247919,-1000.0,0.00022499,2]
[331239092,1720150247929,-405.55939366,0.00022499,2]
[331239093,1720150247938,-4126.23757647,0.00022499,2]
[331239094,1720150247947,-151.0,0.00022499,2]
[331239095,1720150247956,-3000.0,0.00022499,2]
[331239096,1720150247966,-151.86110585,0.00022499,2]
[331239097,1720150247975,-491826.61844034,0.000225,7]
[331239098,1720150247985,-2953180.12690741,0.000225,5]
[331239099,1720150247994,-4091.37,0.000225,2]
[331239100,1720150248003,-13749.59,0.000225,2]
[331239101,1720150248012,-33383.97177021,0.000225,2]
[331239102,1720150248022,-3000.0,0.000225,2]
[331239103,1720150248031,-2000.0,0.000225,2]
[331239104,1720150248040,-200.0,0.000225,2]
[331239105,1720150248049,-257.0,0.000225,2]
[331239106,1720150248059,-3548.87,0.000225,2]
[331239107,1720150248068,-151.0,0.000225,7]
[331239108,1720150248078,-151.0,0.000225,7]
[331239109,1720150248087,-151.0,0.000225,7]
[331239110,1720150248097,-151.0,0.000225,7]
[331239111,1720150248106,-151.0,0.000225,7]
[331239112,1720150248115,-151.0,0.000225,7]
[331239113,1720150248125,-151.0,0.000225,7]
[331239114,1720150248134,-151.0,0.000225,7]
[331239115,1720150248143,-151.0,0.000225,7]
[331239116,1720150248152,-151.0,0.000225,7]
[331239117,1720150248166,-151.0,0.000225,7]
[331239118,1720150248176,-151.0,0.000225,7]
[331239119,1720150248185,-151.0,0.000225,7]
[331239120,1720150248194,-151.0,0.000225,7]
[331239121,1720150248204,-151.0,0.000225,7]
[331239122,1720150248214,-151.0,0.000225,7]
[331239123,1720150248223,-151.0,0.000225,7]
[331239124,1720150248233,-740.712266,0.000225,7]
[331239125,1720150248242,-740.712266,0.000225,7]
[331239126,1720150248252,-151.0,0.000225,7]
[331239127,1720150248261,-151.0,0.000225,7]
[331239128,1720150248270,-151.0,0.000225,7]
[331239129,1720150248280,-151.0,0.000225,7]
[331239130,1720150248289,-169.279564,0.000225,7]
[331239131,1720150248299,-151.0,0.000225,7]
[331239132,1720150248440,-151.0,0.000225,7]
[331239133,1720150248450,-151.0,0.000225,7]
[331239134,1720150248459,-153.441949,0.000225,7]
[331239135,1720150248469,-151.0,0.000225,7]
[331239136,1720150248479,-151.0,0.000225,7]
[331239137,1720150248488,-151.0,0.000225,7]
[331239138,1720150248498,-151.0,0.000225,7]
[331239139,1720150248507,-151.486198,0.000225,7]
[331239140,1720150248517,-151.0,0.000225,7]
[331239141,1720150248526,-151.0,0.000225,7]
[331239142,1720150248535,-151.0,0.000225,7]
[331239143,1720150248545,-151.0,0.000225,7]
[331239144,1720150248554,-151.0,0.000225,7]
[331239145,1720150248564,-151.0,0.000225,7]
[331239146,1720150248574,-151.0,0.000225,7]
[331239147,1720150248584,-151.0,0.000225,7]
[331239148,1720150248594,-151.0,0.000225,7]
[331239149,1720150248603,-151.0,0.000225,7]
[331239150,1720150248613,-151.0,0.000225,7]
[331239151,1720150248625,-151.0,0.000225,7]
[331239152,1720150248635,-151.0,0.000225,7]
[331239153,1720150248644,-151.0,0.000225,7]
[331239154,1720150248653,-151.0,0.000225,7]
[331239155,1720150248670,-151.0,0.000225,7]
[331239156,1720150248679,-151.0,0.000225,7]
[331239157,1720150248688,-151.0,0.000225,7]
[331239158,1720150248699,-151.672102,0.000225,7]
[331239159,1720150248708,-152.337756,0.000225,7]
[331239160,1720150248718,-151.0,0.000225,7]
[331239161,1720150248727,-151.0,0.000225,7]
[331239164,1720150248736,-3569.447678,0.000225,7]
[331239166,1720150248746,-3569.447678,0.000225,7]
[331239168,1720150248755,-3569.447678,0.000225,7]
[331239171,1720150248766,-3569.447678,0.000225,7]
[331239175,1720150248775,-151.683932,0.000225,7]
[331239177,1720150248785,-151.0,0.000225,7]
[331239182,1720150248795,-151.0,0.000225,7]
[331239185,1720150248804,-298.122769,0.000225,7]
[331239188,1720150248814,-151.0,0.000225,7]
[331239189,1720150248823,-150.0,0.00022509,10]
[331239191,1720150248833,-167.0,0.00022518,2]
[331239192,1720150248843,-153.35040933,0.00022518,2]
[331239193,1720150248852,-153.35040933,0.00022521,2]
[331239194,1720150248862,-258.47034544,0.00022523,2]
[331239195,1720150248872,-166.66666667,0.00022525,2]
[331239196,1720150248882,-29627.64877959,0.00022542,2]
[331239198,1720150248891,-837.73611993,0.00022561,2]
[331239200,1720150248900,-1104.22,0.00022562,2]
[331239202,1720150248916,-1416.03,0.00022562,2]
[331239204,1720150248926,-162.26611918,0.00022563,2]
[331239206,1720150248936,-155.189,0.00022584,2]
[331239208,1720150248945,-157.92486217,0.00022591,2]
[331239210,1720150248954,-1026.58262803,0.00022603,2]
[331239212,1720150248964,-285.37406163,0.00022623,2]
[331239214,1720150248973,-992.70844829,0.00022629,2]
[331239216,1720150248983,-320.57559794,0.00022633,2]
[331239218,1720150248992,-403.21141503,0.00022642,2]
[331239220,1720150249002,-162.26611918,0.00022645,2]
[331239222,1720150249012,-258.47034544,0.00022645,2]
[331239224,1720150249022,-678.59777895,0.00022645,2]
[331239226,1720150249031,-1391.00417367,0.00022645,2]
[331239228,1720150249041,-4140.31604689,0.00022645,2]
[331239230,1720150249050,-29627.64877959,0.00022658,2]
[331239232,1720150249060,-1123.0,0.00022662,2]
[331239234,1720150249069,-155.52387171,0.00022693,2]
[331239236,1720150249078,-1000.0,0.00022699,2]
[331239238,1720150249088,-1000.0,0.000227,2]
[331239240,1720150249097,-171.80883893,0.00022711,2]
[331239242,1720150249107,-1119.7215907,0.00022717,2]
[331239244,1720150249116,-2000.0,0.00022725,2]
[331239246,1720150249126,-200.0,0.00022725,2]
[331239248,1720150249136,-162.26611918,0.00022727,2]
[331239250,1720150249145,-150.20681206,0.00022731,2]
[331239252,1720150249154,-2000.0,0.00022738,2]
[331239253,1720150249167,-1000.0,0.00022739,8]
[331239254,1720150249176,-161.24641039,0.00022764,2]
[331239255,1720150249185,-992.70844829,0.00022766,2]
[331239256,1720150249194,-166.66666666,0.00022767,2]
[331239257,1720150249203,-499.74298107,0.00022767,2]
[331239258,1720150249213,-258.47034544,0.00022768,2]
[331239259,1720150249222,-251.17385601,0.00022771,2]
[331239260,1720150249232,-29627.64877959,0.00022774,2]
[331239261,1720150249241,-162.26611918,0.00022808,2]
[331239262,1720150249250,-166.66666667,0.00022813,2]
[331239263,1720150249260,-171.80883893,0.00022813,2]
[331239264,1720150249270,-150.0,0.00022814,10]
[331239265,1720150249280,-23092.03927143,0.00022815,2]
[331239266,1720150249290,-361.47,0.00022818,2]
[331239267,1720150249300,-171.80883893,0.00022835,2]
[331239268,1720150249309,-800.0,0.00022849,2]
[331239269,1720150249319,-800.0,0.00022849,2]
[331239270,1720150249329,-800.0,0.00022849,2]
[331239271,1720150249339,-800.0,0.00022849,2]
[331239272,1720150249349,-1026.58262803,0.00022854,2]
[331239273,1720150249359,-1915.8795671,0.00022886,2]
[331239274,1720150249369,-173.89719412,0.00022889,10]
[331239275,1720150249379,-159.80473577,0.0002289,2]
[331239276,1720150249388,-162.26611918,0.0002289,2]
[331239277,1720150249398,-258.47034544,0.0002289,2]
[331239278,1720150249407,-29627.64877959,0.0002289,2]
[331239279,1720150249421,-320.57559794,0.0002289,2]
[331239280,1720150249431,-1391.00417367,0.0002289,2]
[331239281,1720150249440,-4140.31604689,0.0002289,2]
[331239282,1720150249450,-1119.7215907,0.00022897,2]
[331239283,1720150249460,-491.0,0.000229,5]
[331239284,1720150249469,-308.3,0.000229,2]
[331239285,1720150249479,-992.70844829,0.00022903,2]
[331239286,1720150249488,-849.64,0.00022922,2]
[331239287,1720150249498,-169.42393581,0.00022925,2]
[331239288,1720150249507,-250.0,0.00022927,2]
[331239289,1720150249516,-678.59777895,0.00022928,2]
[331239290,1720150249526,-271.71494604,0.00022934,2]
[331239291,1720150249536,-499.74298107,0.00022934,2]
[331239292,1720150249545,-2000.0,0.00022952,2]
[331239293,1720150249554,-200.0,0.00022952,2]
[331239294,1720150249564,-9481.8453761,0.00022974,2]
[331239295,1720150249574,-8508.8876402,0.00022974,2]
[331239296,1720150249584,-7535.9299043,0.00022974,2]
[331239297,1720150249593,-6562.9721684,0.00022974,2]
[331239298,1720150249603,-2012.6645643,0.00022974,2]
[331239299,1720150249618,-1812.5146185,0.00022974,2]
[331239300,1720150249627,-1612.3646728,0.00022974,2]
[331239301,1720150249637,-1412.214727,0.00022974,2]
[331239302,1720150249646,-695.6853187,0.00022974,2]
[331239303,1720150249657,-627.1079807,0.00022974,2]
[331239304,1720150249671,-558.5306428,0.00022974,2]
[331239305,1720150249680,-489.9533048,0.00022974,2]
[331239306,1720150249690,-678.59777895,0.00022974,2]
[331239307,1720150249701,-412.6779121,0.00022974,2]
[331239308,1720150249710,-372.6953746,0.00022974,2]
[331239309,1720150249720,-332.7128372,0.00022974,2]
[331239310,1720150249730,-292.7302997,0.00022974,2]
[331239311,1720150249739,-34961.5839862,0.00022974,2]
[331239312,1720150249749,-31574.3107642,0.00022974,2]
[331239313,1720150249760,-28187.0375422,0.00022974,2]
[331239314,1720150249770,-24799.7643202,0.00022974,2]
[331239315,1720150249779,-210063.72851792,0.00022975,2]
[331239316,1720150249789,-1491.25959753,0.00022975,2]
[331239317,1720150249798,-50637.0,0.00022975,2]
[331239318,1720150249808,-151.0,0.00022975,7]
[331239319,1720150249817,-151.0,0.00022975,7]
[331239320,1720150249827,-151.0,0.00022975,7]
[331239321,1720150249836,-151.0,0.00022975,7]
[331239322,1720150249845,-151.0,0.00022975,7]
[331239323,1720150249854,-151.727477,0.00022975,7]
[331239324,1720150249864,-151.0,0.00022975,7]
[331239325,1720150249873,-151.0,0.00022975,7]
[331239326,1720150249883,-151.0,0.00022975,7]
[331239327,1720150249894,-158.655912,0.00022975,7]
[331239328,1720150249903,-151.0,0.00022975,7]
[331239329,1720150249922,-151.0,0.00022975,7]
[331239330,1720150249931,-151.0,0.00022975,7]
[331239331,1720150249940,-151.0,0.00022975,7]
[331239332,1720150249949,-151.0,0.00022975,7]
[331239333,1720150249961,-151.0,0.00022975,7]
[331239334,1720150249970,-151.0,0.00022975,7]
[331239335,1720150249979,-151.0,0.00022975,7]
[331239336,1720150249988,-151.0,0.00022975,7]
[331239337,1720150249997,-151.0,0.00022975,7]
[331239338,1720150250006,-151.0,0.00022975,7]
[331239339,1720150250015,-151.0,0.00022975,7]
[331239340,1720150250023,-151.0,0.00022975,7]
[331239341,1720150250032,-151.0,0.00022975,7]
[331239342,1720150250041,-740.712266,0.00022975,7]
[331239343,1720150250051,-151.0,0.00022975,7]
[331239344,1720150250060,-214.802023,0.00022975,7]
[331239345,1720150250070,-151.0,0.00022975,7]
[331239346,1720150250079,-151.0,0.00022975,7]
[331239347,1720150250088,-151.0,0.00022975,7]
[331239348,1720150250097,-151.0,0.00022975,7]
[331239349,1720150250107,-151.0,0.00022975,7]
[331239350,1720150250116,-151.0,0.00022975,7]
[331239351,1720150250125,-151.0,0.00022975,7]
[331239352,1720150250135,-151.0,0.00022975,7]
[331239353,1720150250144,-3569.447678,0.00022975,7]
[331239354,1720150250154,-3569.447678,0.00022975,7]
[331239355,1720150250163,-151.0,0.00022975,7]
[331239356,1720150250173,-15174.49825607,0.00022979,2]
[331239357,1720150250182,-1000.0,0.00022987,3]
[331239358,1720150250192,-68260.28715283,0.00022988,2]
[331239359,1720150250201,-1000.0,0.00022988,2]
[331239360,1720150250211,-4911.69871833,0.00022989,2]
[331239361,1720150250220,-235650.56472973,0.00022989,2]
[331239362,1720150250229,-15306.11943285,0.00022989,2]
[331239363,1720150250238,-897.81501548,0.0002299,5]
[331239364,1720150250247,-2514796.15539735,0.0002299,5]
[331239365,1720150250271,-1965.59341008,0.0002299,5]
[331239366,1720150250284,-1000.01666094,0.0002299,5]
[331239367,1720150250296,-2010.93506105,0.0002299,5]
[331239368,1720150250480,-227.17477303,0.00018899,2]
[331239369,1720150250489,-295.27845213,0.0001935,2]
[331239370,1720150250498,-320.29,0.00021644,2]
[331239371,1720150250507,-727.29704577,0.0002299,5]
[331239372,1720150250517,-21151.51683494,0.0002299,5]
[331239373,1720150250528,-2388.0000005,0.0002299,5]
[331239374,1720150250538,-342756.39274088,0.0002299,5]
[331239375,1720150250548,-11045.4344,0.0002299,5]
[331239376,1720150250559,-22498.27728476,0.0002299,5]
[331239377,1720150250570,-1941.80506488,0.0002299,5]
[331239378,1720150251352,-324.66883156,0.0002,2]
[331239379,1720150251362,-187.09328844,0.0002,2]
[331239380,1720150251374,-137.57554312,0.0002,2]
[331239381,1720150251383,-324.66883156,0.0002,2]
[331239382,1720150251393,-324.66883156,0.0002,2]
[331239383,1720150251403,-277.08687376,0.0002,2]
[331239384,1720150251680,-47.5819578,0.0002,2]
[331239385,1720150251692,-324.66883156,0.0002,2]
[331239386,1720150251703,-26.97172359,0.0002,2]
[331239387,1720150251715,-297.69710797,0.0002,2]
[331239388,1720150251725,-324.66883156,0.0002,2]
[331239389,1720150251737,-146.77323741,0.0002,2]
[331239390,1720150251750,-177.89559415,0.0002,2]
[331239391,1720150251760,-324.66883156,0.0002,2]
[331239392,1720150251770,-324.66883156,0.0002,2]
[331239393,1720150251781,-324.66883156,0.0002,2]
[331239394,1720150251790,-324.66883156,0.0002,2]
[331239395,1720150251800,-2346.47907961,0.00020162,2]
[331239396,1720150251811,-584.82021014,0.00020162,2]
[331239397,1720150251822,-2791.52326043,0.00020162,2]
[331239398,1720150251834,-1469.45,0.00020162,2]
[331239399,1720150251846,-1379.40264,0.00020162,2]
[331239400,1720150251858,-29671.32480982,0.00020162,2]
[331239401,1720150251868,-224.69944693,0.000224,2]
[331239402,1720150251878,-2216.1711879,0.00022494,2]
[331239403,1720150251888,-1416.40810509,0.00022498,2]
[331239404,1720150251898,-2022.0398536,0.00022974,2]
[331239405,1720150251907,-1827.9085193,0.00022974,2]
[331239406,1720150251923,-1633.777185,0.00022974,2]
[331239407,1720150251934,-1439.6458507,0.00022974,2]
[331239408,1720150251944,-199267.68779628,0.0002299,5]
[331239409,1720150251954,-65288.16835558,0.0002299,5]
[331239410,1720150251966,-349.2047,0.0002299,5]
[331239411,1720150251978,-607.97134023,0.0002299,5]
[331239420,1720150619750,163974.06938752,0.000225,120]
[331239421,1720150619781,665458.8775128,0.000225,120]
[331239424,1720150828530,4926.08854231,0.00011199,2]
[331239425,1720150867885,10000.0,0.00025,60]
[331239432,1720151296137,-701.43,0.00012614,2]
[331239433,1720151296174,-295.46908239,0.00013128,2]
[331239434,1720151296211,-282.23845864,0.00013543,2]
[331239435,1720151296244,-150.0,0.00013973,2]
[331239436,1720151296283,-300.0,0.00013989,2]
[331239437,1720151296322,-3799.53074325,0.00013989,2]
[331239438,1720151296364,-2932.42136102,0.0001399,2]
[331239439,1720151296408,-8461.0896453,0.0001399,2]
[331239440,1720151296450,-8461.0896453,0.0001399,2]
[331239441,1720151296492,-1887.73600131,0.0001399,2]
[331239442,1720151296525,-150.0,0.00013998,2]
[331239443,1720151296559,-500.0,0.00013999,2]
[331239444,1720151296597,-268.40165857,0.00013999,2]
[331239445,1720151296631,-500.0,0.00013999,2]
[331239446,1720151296666,-500.0,0.00013999,2]
[331239447,1720151296699,-202.1301967,0.00013999,2]
[331239448,1720151296732,-500.0,0.00013999,2]
[331239449,1720151296765,-639.27750316,0.00013999,2]
[331239450,1720151296797,-1401.85494705,0.00013999,2]
[331239451,1720151296831,-745.44624059,0.00013999,2]
[331239452,1720151296869,-320.57559801,0.00013999,2]
[331239453,1720151296906,-845.66749991,0.00014,2]
[331239454,1720151296946,-5075.5085982,0.00014,2]
[331239455,1720151297010,-8461.0896453,0.00014,2]
[331239493,1720151432405,-199.76326945,0.00013999,2]
[331239494,1720151432415,-300.0,0.00013999,2]
[331239496,1720151432425,-437.04631095,0.00014,2]
[331239498,1720151432441,-2000.0,0.00014,2]
[331239500,1720151432452,-382.31751455,0.00014,2]
[331239502,1720151432464,-2347.83063545,0.00014,2]
[331239503,1720151432479,-36972.71883446,0.00014,2]
[331239504,1720151432491,-87092.43475726,0.00014,2]
[331239505,1720151432503,-562.4996314,0.00014,2]
[331239506,1720151432515,-4051.00227482,0.00014,2]
[331239507,1720151432526,-664.57727663,0.00014,2]
[331239508,1720151432537,-463.27840515,0.00014,2]
[331239509,1720151432548,-274.80492639,0.00014,2]
[331239510,1720151432560,-555.13905733,0.00014,2]
[331239511,1720151432571,-5648.20364078,0.00014,2]
[331239512,1720151432584,-546.53616094,0.00014,2]
[331239513,1720151432595,-2123.26335576,0.00014,2]
[331239514,1720151432607,-55494.37053984,0.00014,2]
[331239515,1720151432619,-806.77598637,0.00014,2]
[331239544,1720151438722,-3264.6050973,0.00014,2]
[331239545,1720151438734,-610.3,0.00014,2]
[331239546,1720151438746,-2833.75534537,0.00014,2]
[331239547,1720151438758,-3809.00512053,0.00014,2]
[331239548,1720151438769,-3535.07047308,0.00014,2]
[331239549,1720151438781,-9151.5,0.00014,2]
[331239550,1720151438793,-374.94082365,0.00014,2]
[331239551,1720151438804,-2998.41823008,0.00014,2]
[331239552,1720151438816,-1008.16876626,0.00014,2]
[331239553,1720151438827,-5808.32989986,0.00014,2]
[331239554,1720151438981,-3282.57285901,0.00014,2]
[331239556,1720151438992,-572.88140995,0.00014,2]
[331239559,1720151439006,-785.92464769,0.00014,2]
[331239561,1720151439019,-782.62207443,0.00014,2]
[331239566,1720151440738,-495.55389865,0.00014,2]
[331239568,1720151440750,-583.2607277,0.00014,2]
[331239570,1720151440762,-1751.0,0.00014,2]
[331239571,1720151440773,-852.83090585,0.00014,2]
[331239572,1720151440987,-8604.6535736,0.00014,2]
[331239573,1720151441034,-4547.08758781,0.00014,2]
[331239574,1720151441046,-3604.54927796,0.00014,2]
[331239575,1720151441058,-6584.77830081,0.00014,2]
[331239576,1720151441069,-519.73379976,0.00014,2]
[331239577,1720151441287,-64933.76788165,0.00014,2]
[331239578,1720151441298,-3600.3252285,0.00014,2]
[331239579,1720151441309,-2478.65495127,0.00014,2]
[331239580,1720151441320,-1226.66149548,0.00014,2]
[331239581,1720151441331,-764.42214,0.00014,2]
[331239582,1720151441342,-55545.00000004,0.00014,2]
[331239583,1720151441356,-1275.26474029,0.00014,2]
[331239584,1720151441367,-1197.8095201,0.00014,2]
[331239585,1720151441379,-799.45115419,0.00014,2]
[331239586,1720151441390,-260.13526154,0.00014,2]
[331239669,1720151443182,-180025.63212111,0.00014,2]
[331239671,1720151443196,-342756.39274088,0.00014,2]
[331239674,1720151443216,-587.65442851,0.00014,2]
[331239687,1720151443664,-437.6421917,0.00014,2]
[331239688,1720151443676,-670.9176604,0.00014,2]
[331239689,1720151443687,-513.18500005,0.00014,2]
[331239690,1720151443703,-304.525,0.00014,2]
[331239691,1720151443714,-2264.26216506,0.00014,2]
[331239692,1720151444214,-11462.42947512,0.00014,2]
[331239693,1720151444225,-1366.41895262,0.00014,2]
[331239694,1720151444237,-20000.39273203,0.00014,2]
[331239695,1720151444249,-489.98199999,0.00014,2]
[331239696,1720151444261,-4482.73955174,0.00014,2]
[331239765,1720151447160,-688.2372,0.00014,2]
[331239766,1720151447171,-826.6183,0.00014,2]
[331239767,1720151447184,-571.59285232,0.00014,2]
[331239772,1720151737839,391.24441782,0.00011199,2]
[331239773,1720151737874,7273.79520089,0.00011199,2]
[331239774,1720151737909,4991.16733129,0.00011199,2]
[331239775,1720151737942,8098.18613906,0.00011199,2]
[331239776,1720151737978,14182.24026143,0.00011199,2]
[331239777,1720151738128,255009.03008713,0.00011199,2]
[331239779,1720151773144,190.08159447,0.00011199,2]
[331239781,1720151840445,447.32059407,0.00011199,2]
[331239783,1720152023414,-666.35,0.00012422,2]
[331239784,1720152023518,-310.5565095,0.00013799,2]
[331239785,1720152023541,-150.0,0.00013899,2]
[331239786,1720152023564,-32942.2649,0.000139,2]
[331239787,1720152023591,-1226.62307866,0.000139,2]
[331239788,1720152023617,-329065.20551184,0.00014,2]
[331239854,1720152632789,-337.01913656,0.00011793,2]
[331239855,1720152632802,-342.79086344,0.00011793,2]
[331239856,1720152632811,-2912.29950656,0.00013128,2]
[331239857,1720152632824,-2697.05711625,0.00013128,2]
[331239858,1720152632835,-389.84087267,0.00013128,2]
[331239859,1720152632847,-298.96499867,0.00013128,2]
[331239860,1720152632860,-2146.38,0.00013128,2]
[331239861,1720152632873,-711.72882134,0.00013128,2]
[331239862,1720152632885,-12723.59943626,0.00013128,2]
[331239863,1720152632895,-1781.6008163,0.00013128,2]
[331239864,1720152632908,-4475.52028849,0.00013128,2]
[331239865,1720152632920,-2722.04110642,0.00013128,2]
[331239866,1720152632932,-709.44987253,0.00013128,2]
[331239867,1720152632944,-472.14322502,0.00013128,2]
[331239868,1720152632956,-2916.98492826,0.00013128,2]
[331239869,1720152633004,-409.26391914,0.00013128,2]
[331239870,1720152633015,-830.795,0.00013128,2]
[331239871,1720152633026,-5506.62554695,0.00013128,2]
[331239872,1720152633038,-744.33356825,0.00013128,2]
[331239873,1720152633047,-372.51,0.00013436,2]
[331239874,1720152633057,-151.4041478,0.00013488,2]
[331239875,1720152633068,-150.13,0.00013494,2]
[331239876,1720152633078,-1287.48512797,0.00013516,2]
[331239877,1720152633088,-150.13,0.00013536,2]
[331239878,1720152633098,-150.13,0.00013577,2]
[331239879,1720152633108,-150.13,0.00013618,2]
[331239880,1720152633118,-5987.82510692,0.00013656,2]
[331239881,1720152633130,-16546.21907029,0.00013656,2]
[331239882,1720152633141,-1253.56582279,0.00013656,2]
[331239883,1720152633151,-150.13,0.0001366,2]
[331239884,1720152633161,-250.0,0.00013674,2]
[331239885,1720152633171,-150.13,0.00013701,2]
[331239886,1720152633181,-433.98,0.00013714,2]